bitfinex/quotes_SOLUSD_20250306
["timestamp","ask_amount","ask_price","bid_price","bid_amount"]
[1741273611523,0.03,147.2,147.13,0.14216157]
[1741273611802,0.03,147.2,147.15,0.14216157]
[1741273612179,0.03,147.2,147.13,0.14216157]
[1741273612476,0.03,147.2,147.14,52.53350001]
[1741273612674,0.03,147.2,147.17,71.32531044]
[1741273613127,0.03,147.2,147.19,52.67566158]
[1741273613337,0.03,147.2,147.19,71.60963358]
[1741273613625,0.03,147.2,147.19,161.22053358]
[1741273613794,0.03,147.24,147.23,20.14216157]
[1741273613994,0.03,147.24,147.23,174.33526761]
[1741273614299,0.03,147.24,147.23,179.70163358]
[1741273614700,0.03,147.24,147.23,273.00163358]
[1741273614914,0.03,147.27,147.26,39.07613357]
[1741273615100,0.03,147.27,147.26,174.33504233]
[1741273615291,0.03,147.27,147.26,120.37613357]
[1741273615495,0.03,147.27,147.26,172.90963358]
[1741273616530,0.03,147.27,147.26,120.37613357]
[1741273616825,0.03,147.27,147.26,0.14216157]
[1741273617127,0.03,147.27,147.23,71.46747201]
[1741273617308,0.03,147.27,147.24,0.14216157]
[1741273617714,0.03,147.27,147.26,0.14216157]
[1741273618122,0.03,147.27,147.26,73.03532682]
[1741273618300,0.03,147.28,147.27,19.07613357]
[1741273618499,79.9404255,147.37,147.27,19.07613357]
[1741273618500,79.9404255,147.37,147.31,0.14216157]
[1741273618707,0.03,147.37,147.31,154.33470349]
[1741273618912,0.03,147.37,147.35,0.14216157]
[1741273619117,0.03,147.37,147.36,52.67566158]
[1741273619640,0.03,147.43,147.39,20.92406157]
[1741273619806,0.03,147.43,147.41,52.67566158]
[1741273620008,79.9104255,147.52,147.44,20.0]
[1741273620208,79.9104255,147.57,147.45,19.07613357]
[1741273620409,6.7769,147.56,147.45,7.20828471]
[1741273620609,6.7769,147.56,147.49,20.14216157]
[1741273620929,79.9104255,147.57,147.55,20.0]
[1741273621113,79.9104255,147.58,147.57,20.0]
[1741273621435,80.8,147.63,147.6,20.0]
[1741273621602,37.71173658,147.64,147.58,0.42648471]
[1741273621909,16.9585173,147.64,147.58,0.14216157]
[1741273622111,104.5321173,147.64,147.57,0.14216157]
[1741273622308,82.8,147.63,147.57,0.14216157]
[1741273622509,82.8,147.62,147.57,0.14216157]
[1741273622710,80.8,147.61,147.5,0.14216157]
[1741273623001,18.64964886,147.59,147.41,81.3]
[1741273623197,20.64964886,147.57,147.42,1.42386586]
[1741273623397,2.0,147.55,147.39,174.6]
[1741273623706,18.64964886,147.5,147.38,0.21324235]
[1741273623912,90.36,147.49,147.35,72.53350001]
[1741273624110,80.8,147.48,147.33,176.0243847]
[1741273624319,6.7815,147.46,147.35,312.0]
[1741273624498,18.64964886,147.45,147.31,6.2342]
[1741273624702,87.5815,147.46,147.33,52.53350001]
[1741273624920,87.5815,147.46,147.34,21.42487879]
[1741273625103,87.5815,147.46,147.35,18.64964886]
[1741273625519,18.64964886,147.45,147.36,0.14216157]
[1741273625726,171.26,147.47,147.39,52.53350001]
[1741273626025,161.64,147.47,147.43,52.67566158]
[1741273626202,6.7781,147.54,147.45,52.67566158]
[1741273626401,6.7781,147.54,147.45,0.14216157]
[1741273626602,6.7781,147.54,147.47,0.14216157]
[1741273626799,178.0769,147.56,147.47,0.14216157]
[1741273627030,178.0769,147.56,147.48,0.14216157]
[1741273627228,80.8,147.55,147.48,0.14216157]
[1741273627426,18.64964886,147.54,147.41,19.07613357]
[1741273627631,80.8,147.53,147.42,0.14216157]
[1741273628129,18.64964886,147.51,147.42,0.14216157]
[1741273628313,6.7796,147.5,147.41,0.14216157]
[1741273628845,9.66,147.49,147.4,0.14216157]
[1741273629007,25.42744886,147.54,147.46,0.14216157]
[1741273629207,106.22744886,147.54,147.46,0.14216157]
[1741273629410,16.4373,147.56,147.48,0.14216157]
[1741273629932,9.66,147.56,147.48,52.67566158]
[1741273630108,161.58,147.57,147.5,52.67566158]
[1741273630308,168.3567,147.57,147.5,0.14216157]
[1741273630517,80.8,147.56,147.52,0.14216157]
[1741273630945,80.8,147.55,147.52,0.14216157]
[1741273631232,80.8,147.55,147.48,52.53350001]
[1741273631426,80.8,147.55,147.49,52.67566158]
[1741273631622,80.8,147.55,147.49,0.14216157]
[1741273631823,80.8,147.55,147.48,0.14216157]
[1741273632024,80.8,147.54,147.45,6.0418]
[1741273632329,80.8,147.53,147.43,52.53350001]
[1741273632531,80.92590994,147.53,147.44,0.14216157]
[1741273632737,92.2493588,147.52,147.39,87.93454235]
[1741273632938,63.97970994,147.51,147.42,52.53350001]
[1741273633127,63.97970994,147.5,147.44,52.53350001]
[1741273633331,63.97970994,147.5,147.45,52.67566158]
[1741273633633,63.97970994,147.5,147.43,18.64964886]
[1741273633634,63.97970994,147.5,147.43,81.3]
[1741273633824,63.97970994,147.5,147.46,0.14216157]
[1741273634039,63.97970994,147.5,147.46,312.14216157]
[1741273634240,63.97970994,147.5,147.46,364.67566158]
[1741273634415,63.97970994,147.5,147.46,312.14216157]
[1741273634620,70.75950994,147.5,147.46,312.14216157]
[1741273634925,87.70860994,147.5,147.46,312.0]
[1741273635131,87.70860994,147.5,147.43,81.3]
[1741273635310,63.97970994,147.49,147.44,0.14216157]
[1741273635709,73.53970994,147.49,147.43,0.033]
[1741273636144,0.03,147.56,147.49,0.14216157]
[1741273636319,6.8069,147.56,147.53,0.14216157]
[1741273636917,6.8069,147.56,147.51,0.14216157]
[1741273637420,6.8069,147.56,147.5,52.53350001]
[1741273637421,23.7491,147.56,147.5,19.07613357]
[1741273637614,6.8069,147.56,147.5,0.14216157]
[1741273637815,63.97970994,147.55,147.44,81.3]
[1741273638042,63.97970994,147.54,147.48,312.0]
[1741273638338,63.97970994,147.53,147.45,52.53350001]
[1741273638523,70.75840994,147.52,147.47,0.14216157]
[1741273638722,87.70520994,147.52,147.47,0.14216157]
[1741273639066,70.75840994,147.52,147.48,0.14216157]
[1741273639245,70.75840994,147.52,147.48,52.67566158]
[1741273639417,70.75840994,147.52,147.5,0.14216157]
[1741273639931,0.03,147.56,147.52,18.79181043]
[1741273640131,0.03,147.56,147.55,52.67566158]
[1741273640540,0.03,147.56,147.55,0.14216157]
[1741273640739,0.03,147.56,147.54,0.14216157]
[1741273641241,0.03,147.56,147.55,312.14216157]
[1741273641422,0.03,147.56,147.55,0.14216157]
[1741273641831,0.03,147.56,147.55,52.67566158]
[1741273642144,0.03,147.56,147.55,261.20963358]
[1741273643137,0.03,147.56,147.55,267.98693358]
[1741273644240,15.89617236,147.68,147.64,2.0]
[1741273644440,6.7668,147.78,147.7,39.07613357]
[1741273644616,6.7668,147.78,147.7,93.03079268]
[1741273644815,6.7668,147.78,147.7,72.67566158]
[1741273645023,63.97970994,147.77,147.7,52.67566158]
[1741273645323,63.97970994,147.77,147.7,0.14216157]
[1741273645638,63.97970994,147.77,147.7,52.67566158]
[1741273646048,6.7647,147.83,147.7,79.80128683]
[1741273646225,63.97970994,147.84,147.7,79.80128683]
[1741273646429,6.7645,147.83,147.7,79.80128683]
[1741273646634,63.97970994,147.87,147.74,20.14216157]
[1741273646822,63.97970994,147.87,147.82,0.14216157]
[1741273647022,63.97970994,147.86,147.82,0.14216157]
[1741273647227,63.97970994,147.86,147.77,52.53350001]
[1741273647524,18.64964886,147.86,147.78,0.14216157]
[1741273648056,63.97970994,147.85,147.82,312.0]
[1741273648253,63.97970994,147.85,147.83,0.14216157]
[1741273648563,63.97970994,147.93,147.85,0.14216157]
[1741273648849,184.91828206,147.94,147.82,1.41994941]
[1741273649075,63.97970994,147.93,147.85,0.14216157]
[1741273649216,184.91828206,147.94,147.86,0.14216157]
[1741273649421,184.91828206,147.94,147.89,0.14216157]
[1741273649422,161.38,147.94,147.89,0.14216157]
[1741273649643,1.7450511,147.95,147.94,0.14216157]
[1741273650836,1.7450511,147.95,147.94,52.67566158]
[1741273651047,1.7450511,147.95,147.94,0.14216157]
[1741273651444,8.5041511,147.95,147.94,312.0]
[1741273651659,8.5041511,147.95,147.94,312.14216157]
[1741273651660,1.7450511,147.95,147.94,312.14216157]
[1741273652062,1.7450511,147.95,147.94,0.14216157]
[1741273652947,1.7450511,147.95,147.94,52.67566158]
[1741273653139,1.7450511,147.95,147.94,0.14216157]
[1741273653964,1.7450511,147.95,147.94,52.67566158]
[1741273654144,1.7450511,147.95,147.94,71.60963358]
[1741273654348,1.7450511,147.95,147.94,79.78792495]
[1741273654562,177.9997,148.11,147.99,0.28432314]
[1741273654767,161.12,148.11,148.07,0.14216157]
[1741273654956,161.12,148.11,148.1,312.14216157]
[1741273655269,161.12,148.11,148.03,0.28432314]
[1741273655270,167.8717,148.11,148.05,0.14216157]
[1741273655476,63.97970994,148.1,148.05,0.14216157]
[1741273655653,63.97970994,148.1,148.0,0.14216157]
[1741273655843,63.97970994,148.09,148.02,0.14216157]
[1741273656174,184.751,148.11,148.05,0.14216157]
[1741273656175,167.8717,148.11,148.05,0.14216157]
[1741273656358,167.8717,148.11,148.05,52.53350001]
[1741273656684,1.7450511,148.24,148.15,0.14216157]
[1741273656884,1.7450511,148.24,148.19,0.14216157]
[1741273657541,8.4908511,148.24,148.17,0.14216157]
[1741273657956,63.97970994,148.23,148.09,18.64964886]
[1741273658171,18.64964886,148.21,148.17,312.0]
[1741273658457,63.97970994,148.2,148.1,52.67566158]
[1741273658652,63.97970994,148.2,148.14,0.14216157]
[1741273658862,63.97970994,148.19,148.02,9.54]
[1741273659065,63.97970994,148.19,148.08,0.14216157]
[1741273659260,6.7477,148.2,148.08,52.53350001]
[1741273659261,63.97970994,148.18,148.08,52.53350001]
[1741273659480,63.97970994,148.18,148.11,0.14216157]
[1741273659657,16.2867,148.22,148.13,0.14216157]
[1741273659977,9.54,148.22,148.15,52.67566158]
[1741273660145,63.97970994,148.23,148.17,0.14216157]
[1741273660351,1.7750511,148.24,148.17,0.14216157]
[1741273660769,8.5209511,148.24,148.17,0.14216157]
[1741273661072,8.5209511,148.24,148.17,52.53350001]
[1741273661276,1.7750511,148.24,148.21,0.14216157]
[1741273661862,1.7750511,148.24,148.2,52.67566158]
[1741273662073,1.7750511,148.24,148.23,52.67566158]
[1741273663163,1.7750511,148.24,148.23,0.14216157]
[1741273663484,1.7750511,148.24,148.17,52.53350001]
[1741273663485,8.5208511,148.24,148.17,52.53350001]
[1741273663654,8.5208511,148.24,148.15,52.53350001]
[1741273663856,8.5208511,148.24,148.12,18.64964886]
[1741273664055,89.36506104,148.24,148.13,52.53350001]
[1741273664454,89.36506104,148.24,148.14,52.53350001]
[1741273664782,72.50056104,148.24,148.14,312.0]
[1741273664987,72.50056104,148.24,148.18,3.20928041]
[1741273665481,89.36506104,148.24,148.14,0.14216157]
[1741273666073,89.36506104,148.24,148.14,52.67566158]
[1741273666373,89.36506104,148.24,148.16,0.14216157]
[1741273666885,8.5208511,148.24,148.16,52.67566158]
[1741273667049,8.5208511,148.24,148.18,0.14216157]
[1741273667860,1.7750511,148.24,148.19,52.67566158]
[1741273668078,1.7750511,148.24,148.17,20.06665539]
[1741273668079,1.7750511,148.24,148.23,52.53350001]
[1741273668259,1.7750511,148.24,148.23,383.32531044]
[1741273668981,160.82,148.34,148.23,383.32531044]
[1741273668982,160.82,148.34,148.3,52.67566158]
[1741273669562,160.82,148.34,148.32,52.67566158]
[1741273669961,16.8456,148.41,148.33,52.67566158]
[1741273670183,23.5778,148.45,148.34,0.14216157]
[1741273670390,6.7362,148.45,148.41,52.53350001]
[1741273670563,6.7362,148.45,148.42,0.14216157]
[1741273670766,0.239142,148.45,148.4,52.67566158]
[1741273671094,0.239142,148.45,148.42,0.14216157]
[1741273671272,0.239142,148.45,148.44,52.67566158]
[1741273672053,0.239142,148.45,148.44,364.67566158]
[1741273672458,0.239142,148.45,148.44,312.14216157]
[1741273672691,0.239142,148.45,148.44,312.0]
[1741273672894,6.975342,148.45,148.35,9.54]
[1741273673076,6.975342,148.45,148.38,52.53350001]
[1741273673581,6.975342,148.45,148.35,9.54]
[1741273673784,0.239142,148.45,148.37,18.64964886]
[1741273673968,0.239142,148.45,148.43,0.14216157]
[1741273674168,6.975442,148.45,148.4,52.53350001]
[1741273674481,0.239142,148.45,148.44,0.14216157]
[1741273674682,0.239142,148.45,148.44,52.67566158]
[1741273674865,0.239142,148.45,148.44,0.14216157]
[1741273675060,0.239142,148.45,148.38,1.41444509]
[1741273675265,0.239142,148.45,148.44,0.14216157]
[1741273675565,6.975442,148.45,148.37,52.53350001]
[1741273675886,6.975442,148.45,148.37,312.0]
[1741273676184,6.975442,148.45,148.4,52.67566158]
[1741273676486,6.975442,148.45,148.28,2.0]
[1741273676487,25.816042,148.45,148.27,10.26]
[1741273676793,82.6293588,148.44,148.28,1.41556954]
[1741273676966,59.497342,148.45,148.27,11.67572871]
[1741273677168,57.497342,148.45,148.33,52.53350001]
[1741273677474,93.178642,148.45,148.3,18.64964886]
[1741273677664,91.178642,148.45,148.33,52.53350001]
[1741273677995,0.239142,148.45,148.39,52.53350001]
[1741273678171,0.239142,148.45,148.37,18.64964886]
[1741273678372,0.239142,148.45,148.43,0.14216157]
[1741273678773,6.975442,148.45,148.33,11.83458645]
[1741273679117,184.376042,148.45,148.35,52.53350001]
[1741273679467,184.376042,148.45,148.35,312.0]
[1741273679702,218.057342,148.45,148.35,312.0]
[1741273679870,10.42,148.44,148.34,52.53350001]
[1741273680199,10.42,148.44,148.35,52.53350001]
[1741273680403,10.42,148.44,148.34,52.53350001]
[1741273680902,23.58,148.43,148.31,52.53350001]
[1741273681113,87.55970994,148.43,148.25,1.62846636]
[1741273681274,2.0,148.41,148.24,7.42979368]
[1741273681473,18.64964886,148.39,148.25,52.53350001]
[1741273681807,20.64964886,148.35,148.21,52.53350001]
[1741273681976,63.97970994,148.34,148.24,52.53350001]
[1741273682315,170.98,148.33,148.22,52.53350001]
[1741273682513,170.98,148.33,148.25,52.53350001]
[1741273682806,170.98,148.33,148.25,364.53350001]
[1741273682988,6.7421,148.32,148.17,6.5976]
[1741273683304,1.5931,148.3,148.11,1.4164848]
[1741273683604,18.64964886,148.27,148.11,1.4164848]
[1741273683774,1.5931,148.3,148.17,52.53350001]
[1741273683775,10.44,148.26,148.17,52.53350001]
[1741273684100,1.5931,148.3,148.19,52.53350001]
[1741273684304,1.5931,148.3,148.2,0.14216157]
[1741273684478,1.5931,148.3,148.09,8.16890342]
[1741273684479,63.97970994,148.29,148.09,8.16890342]
[1741273684679,18.64964886,148.26,148.09,1.41670342]
[1741273684897,23.6103,148.24,148.09,1.41670342]
[1741273685203,74.41970994,148.23,148.11,52.53350001]
[1741273685394,63.97970994,148.22,148.12,52.53350001]
[1741273685575,63.97970994,148.22,148.09,1.41743542]
[1741273685782,63.97970994,148.22,148.16,52.53350001]
[1741273685982,0.239142,148.24,148.19,312.0]
[1741273686182,64.21885194,148.24,148.19,312.0]
[1741273686903,6.7462,148.23,148.19,312.0]
[1741273687122,0.239142,148.24,148.18,0.14216157]
[1741273687283,6.984942,148.24,148.19,0.14216157]
[1741273687483,0.239142,148.24,148.19,52.67566158]
[1741273687684,0.239142,148.24,148.23,52.67566158]
[1741273687887,0.239142,148.24,148.23,123.85881045]
[1741273688091,0.239142,148.24,148.23,125.27479757]
[1741273688418,0.239142,148.24,148.2,52.53350001]
[1741273688714,0.239142,148.24,148.17,1.41674864]
[1741273688891,6.985142,148.24,148.14,18.64964886]
[1741273689091,6.985142,148.24,148.17,52.53350001]
[1741273689291,8.630442,148.24,148.09,1.41696439]
[1741273689496,63.97970994,148.23,148.1,52.53350001]
[1741273689798,63.97970994,148.23,148.06,1.41764214]
[1741273690001,18.64964886,148.21,148.09,52.53350001]
[1741273690209,63.97970994,148.22,148.14,0.14216157]
[1741273690513,63.97970994,148.22,148.13,364.53350001]
[1741273690514,63.97970994,148.22,148.16,52.53350001]
[1741273690826,8.630442,148.24,148.17,52.53350001]
[1741273691134,8.630442,148.24,148.13,18.64964886]
[1741273691135,8.630442,148.24,148.18,0.14216157]
[1741273691296,8.630442,148.24,148.18,52.67566158]
[1741273691499,8.630442,148.24,148.18,0.14216157]
[1741273691697,0.239142,148.24,148.23,0.14216157]
[1741273691919,0.239142,148.24,148.23,52.67566158]
[1741273692290,0.239142,148.24,148.23,0.14216157]
[1741273692490,6.984942,148.24,148.16,52.53350001]
[1741273692691,0.239142,148.24,148.17,52.53350001]
[1741273693005,6.984942,148.24,148.13,6.7504]
[1741273693235,63.97970994,148.23,148.12,25.40084886]
[1741273693525,63.97970994,148.22,148.11,10.46]
[1741273693729,63.97970994,148.21,148.09,6.7526]
[1741273693894,63.97970994,148.2,148.14,0.14216157]
[1741273694216,23.849442,148.24,148.1,52.53350001]
[1741273694217,63.97970994,148.19,148.1,52.53350001]
[1741273694404,10.42,148.2,148.08,52.53350001]
[1741273694599,63.97970994,148.19,148.09,0.14216157]
[1741273694807,63.97970994,148.19,148.11,52.53350001]
[1741273694997,6.7485,148.18,148.13,52.53350001]
[1741273695201,86.34679086,148.24,148.08,52.53350001]
[1741273695202,6.7462,148.23,148.12,20.0]
[1741273695411,6.7462,148.23,148.18,52.53350001]
[1741273695611,6.7462,148.23,148.17,52.53350001]
[1741273695837,0.239142,148.24,148.2,52.67566158]
[1741273696038,0.239142,148.24,148.23,1.7816]
[1741273696413,6.984942,148.24,148.23,1.7816]
[1741273696821,6.984942,148.24,148.23,313.7816]
[1741273697019,0.239142,148.24,148.23,313.92376157]
[1741273697630,0.239142,148.24,148.23,313.7816]
[1741273698235,6.984942,148.24,148.23,313.7816]
[1741273698431,0.239142,148.24,148.23,313.7816]
[1741273698634,6.984942,148.24,148.23,313.7816]
[1741273698825,6.984942,148.24,148.23,1.7816]
[1741273699812,0.239142,148.24,148.23,1.7816]
[1741273700013,0.239142,148.24,148.23,1.92376157]
[1741273700213,0.239142,148.24,148.23,54.45726158]
[1741273701043,0.239142,148.24,148.23,113.73696159]
[1741273701248,0.239142,148.24,148.23,132.38661045]
[1741273701439,6.7403,148.36,148.32,52.53350001]
[1741273701843,6.7403,148.36,148.31,0.14216157]
[1741273701844,167.3999,148.37,148.35,312.0]
[1741273702226,63.97970994,148.36,148.23,1.7816]
[1741273702446,63.97970994,148.35,148.27,52.53350001]
[1741273702619,63.97970994,148.35,148.24,0.14216157]
[1741273702620,10.36,148.36,148.29,52.67566158]
[1741273702820,231.37960994,148.37,148.31,52.67566158]
[1741273703030,231.37960994,148.37,148.26,1.41577357]
[1741273703235,63.97970994,148.36,148.25,52.53350001]
[1741273703429,63.97970994,148.35,148.3,52.53350001]
[1741273703652,63.97970994,148.36,148.28,52.53350001]
[1741273703859,63.97970994,148.35,148.24,52.53350001]
[1741273704192,74.41970994,148.34,148.23,1.7816]
[1741273704347,6.4698,148.32,148.23,1.7816]
[1741273704666,63.97970994,148.31,148.23,1.7816]
[1741273704869,63.97970994,148.31,148.24,52.53350001]
[1741273705170,6.4698,148.32,148.23,1.7816]
[1741273705171,6.7435,148.29,148.23,1.7816]
[1741273705455,63.97970994,148.28,148.24,312.0]
[1741273705831,35.4043,148.33,148.28,0.14216157]
[1741273705832,1.6952,148.33,148.28,0.14216157]
[1741273706072,6.7408,148.35,148.3,52.53350001]
[1741273706247,63.97970994,148.34,148.24,0.14216157]
[1741273706436,63.97970994,148.33,148.26,0.14216157]
[1741273706630,63.97970994,148.33,148.3,52.53350001]
[1741273707038,70.72180994,148.33,148.26,0.14216157]
[1741273707571,70.72180994,148.33,148.29,52.53350001]
[1741273707774,63.97970994,148.33,148.3,52.53350001]
[1741273707971,70.72140994,148.33,148.25,0.14216157]
[1741273708267,70.72140994,148.33,148.23,1.7816]
[1741273708268,87.57570994,148.33,148.23,1.7816]
[1741273708476,63.97970994,148.32,148.24,52.53350001]
[1741273708686,6.7417,148.33,148.3,52.53350001]
[1741273708845,6.7408,148.35,148.31,364.53350001]
[1741273709041,6.7394,148.38,148.33,52.53350001]
[1741273709253,6.738,148.41,148.32,59.41776158]
[1741273709463,6.738,148.41,148.37,52.53350001]
[1741273709641,6.7377,148.42,148.37,52.53350001]
[1741273709970,6.7365,148.45,148.38,52.53350001]
[1741273710282,6.7365,148.45,148.33,18.933972]
[1741273710283,6.7669,148.44,148.32,52.53350001]
[1741273710441,6.7669,148.44,148.31,18.79181043]
[1741273710640,23.6087,148.44,148.35,52.53350001]
[1741273710943,18.64964886,148.42,148.25,1.41534562]
[1741273711156,18.64964886,148.39,148.23,19.04244235]
[1741273711346,63.97970994,148.38,148.29,52.53350001]
[1741273711539,63.97970994,148.37,148.23,19.04244235]
[1741273711769,63.97970994,148.36,148.28,0.14216157]
[1741273711975,63.97970994,148.36,148.27,52.53350001]
[1741273712148,63.97970994,148.36,148.23,19.04244235]
[1741273712149,63.97970994,148.36,148.25,52.53350001]
[1741273712342,63.97970994,148.36,148.28,52.53350001]
[1741273712542,63.97970994,148.36,148.23,9.72550212]
[1741273712543,63.97970994,148.35,148.26,52.53350001]
[1741273712755,63.97970994,148.35,148.27,52.53350001]
[1741273713369,63.97970994,148.35,148.27,52.67566158]
[1741273713370,6.7412,148.34,148.27,52.67566158]
[1741273713573,70.72050994,148.35,148.31,0.14216157]
[1741273713778,6.7408,148.35,148.31,0.14216157]
[1741273713975,6.7408,148.35,148.29,0.14216157]
[1741273714146,6.7408,148.35,148.31,0.14216157]
[1741273714373,6.7408,148.35,148.31,52.53350001]
[1741273714568,6.7408,148.35,148.3,52.67566158]
[1741273714794,6.7408,148.35,148.3,0.14216157]
[1741273714993,63.97970994,148.41,148.35,0.14216157]
[1741273714994,6.7385,148.4,148.35,0.14216157]
[1741273715309,8.4012,148.42,148.35,0.14216157]
[1741273715489,8.4012,148.42,148.38,312.0]
[1741273716010,1.6632,148.42,148.38,312.0]
[1741273716178,224.56970994,148.44,148.38,52.53350001]
[1741273716501,224.56970994,148.44,148.41,52.53350001]
[1741273716502,160.59,148.44,148.41,52.53350001]
[1741273716679,0.03,148.44,148.34,8.15587976]
[1741273716880,0.03,148.44,148.39,0.14216157]
[1741273717266,0.03,148.44,148.36,0.14216157]
[1741273717705,0.03,148.44,148.38,0.14216157]
[1741273718027,0.03,148.44,148.4,52.53350001]
[1741273718207,0.03,148.44,148.37,0.14216157]
[1741273718495,0.03,148.44,148.4,0.14216157]
[1741273718801,0.03,148.44,148.43,52.67566158]
[1741273718966,0.03,148.44,148.38,30.44]
[1741273719166,0.03,148.44,148.43,312.0]
[1741273719396,0.03,148.44,148.43,364.67566158]
[1741273719570,0.03,148.44,148.43,383.32531044]
[1741273720207,0.03,148.44,148.43,364.67566158]
[1741273720715,0.03,148.44,148.43,383.32531044]
[1741273721277,0.03,148.44,148.43,390.06241044]
[1741273721498,0.03,148.44,148.43,312.14216157]
[1741273721672,0.03,148.44,148.43,364.67566158]
[1741273722316,0.03,148.44,148.43,312.0]
[1741273722483,0.03,148.44,148.4,52.53350001]
[1741273722684,0.03,148.44,148.39,0.14216157]
[1741273722889,0.03,148.44,148.41,0.14216157]
[1741273723123,0.03,148.44,148.4,52.53350001]
[1741273723296,0.03,148.44,148.39,52.53350001]
[1741273723496,0.03,148.44,148.34,11.87473426]
[1741273723719,0.03,148.44,148.34,10.46]
[1741273723931,0.03,148.44,148.43,52.53350001]
[1741273724108,0.03,148.48,148.47,0.14216157]
[1741273724306,0.03,148.48,148.47,18.79181043]
[1741273724619,0.03,148.48,148.46,1.41395885]
[1741273724786,0.03,148.48,148.45,0.14216157]
[1741273725205,0.03,148.48,148.43,52.53350001]
[1741273725405,0.03,148.48,148.45,0.14216157]
[1741273725606,0.03,148.48,148.47,52.67566158]
[1741273726001,0.03,148.48,148.47,0.14216157]
[1741273726336,0.03,148.48,148.41,11.97425236]
[1741273726626,0.03,148.48,148.38,1.41436186]
[1741273726824,0.03,148.48,148.38,18.64964886]
[1741273727035,0.03,148.48,148.45,0.14216157]
[1741273727193,0.03,148.48,148.47,59.41096158]
[1741273727395,0.03,148.48,148.47,78.06061044]
[1741273728007,0.03,148.48,148.47,52.67566158]
[1741273728207,0.03,148.48,148.47,79.474489]
[1741273729142,0.03,148.48,148.47,372.82484014]
[1741273729342,0.03,148.48,148.47,371.41096158]
[1741273729724,0.03,148.48,148.47,390.06061044]
[1741273730230,0.03,148.48,148.47,364.67566158]
[1741273730401,0.03,148.48,148.47,312.14216157]
[1741273730605,0.03,148.48,148.47,312.0]
[1741273730939,0.03,148.48,148.41,6.738]
[1741273731129,0.03,148.48,148.43,52.53350001]
[1741273731805,0.03,148.48,148.41,6.738]
[1741273732132,0.03,148.48,148.41,8.15240101]
[1741273732300,0.03,148.48,148.41,52.53350001]
[1741273732500,0.03,148.48,148.38,1.41458408]
[1741273732730,0.03,148.48,148.38,52.53350001]
[1741273733406,0.03,148.48,148.37,1.41465541]
[1741273733636,0.03,148.48,148.36,0.21324235]
[1741273733637,23.6021,148.48,148.36,1.4147685]
[1741273733803,23.6021,148.48,148.34,11.89502519]
[1741273734004,6.7649,148.48,148.41,52.53350001]
[1741273734226,0.03,148.48,148.46,0.14216157]
[1741273734742,0.03,148.48,148.42,109.71449729]
[1741273734921,0.03,148.48,148.4,18.79181043]
[1741273735102,0.03,148.48,148.43,0.14216157]
[1741273735303,0.03,148.48,148.4,52.53350001]
[1741273735515,0.03,148.48,148.41,0.14216157]
[1741273735822,0.03,148.48,148.39,52.53350001]
[1741273736130,0.03,148.48,148.4,0.14216157]
[1741273736332,0.03,148.48,148.39,52.53350001]
[1741273736539,0.03,148.48,148.41,0.14216157]
[1741273736857,0.03,148.48,148.38,0.033]
[1741273737634,0.03,148.48,148.4,312.0]
[1741273738013,6.4685,148.47,148.4,312.0]
[1741273739019,1.6494,148.46,148.4,312.0]
[1741273739332,1.6494,148.46,148.38,0.033]
[1741273739822,138.0581,148.45,148.38,0.033]
[1741273740120,18.64964886,148.43,148.38,0.033]
[1741273740296,18.64964886,148.43,148.3,1.781]
[1741273740496,80.8,148.42,148.31,52.53350001]
[1741273740714,160.4,148.41,148.31,52.53350001]
[1741273740914,160.4,148.41,148.37,0.14216157]
[1741273741115,6.7362,148.45,148.4,52.53350001]
[1741273741333,23.5768,148.45,148.4,0.14216157]
[1741273741547,6.7362,148.45,148.41,52.53350001]
[1741273741839,6.7362,148.45,148.34,1.41489261]
[1741273742139,23.5768,148.45,148.38,312.0]
[1741273742722,23.5768,148.45,148.39,0.14216157]
[1741273743249,57.2581,148.45,148.37,0.14216157]
[1741273743652,57.2581,148.45,148.35,0.14216157]
[1741273744025,80.8,148.44,148.32,52.53350001]
[1741273744226,10.34,148.43,148.36,52.53350001]
[1741273744427,23.5768,148.45,148.35,0.14216157]
[1741273744643,57.2581,148.45,148.35,52.67566158]